Publisher Label,Publisher URI,"Organisational Unit","Beneficiary Name","Payment Date","Amount (£)","Irrecoverable VAT Amount (£)","Purpose","Merchant Category Code"
"Wolverhampton City Council","http://opendatacommunities.org/id/metropolitan-district-council/wolverhampton","Governance","Park Mobile","04/10/2016","8.40","0.00","Parking fees","4112"
"Wolverhampton City Council","http://opendatacommunities.org/id/metropolitan-district-council/wolverhampton","Governance","Amazon","06/10/2016","50.94","0.00","Equipment - Purchase","5942"
"Wolverhampton City Council","http://opendatacommunities.org/id/metropolitan-district-council/wolverhampton","Governance","Amazon","11/10/2016","6.90","0.00","Equipment - Purchase","5942"
"Wolverhampton City Council","http://opendatacommunities.org/id/metropolitan-district-council/wolverhampton","Governance","Trainline.com","11/10/2016","25.55","0.00","Public transport","4112"
"Wolverhampton City Council","http://opendatacommunities.org/id/metropolitan-district-council/wolverhampton","Governance","www.riverford.co.uk","12/10/2016","24.29","0.00","Subsistence","5499"
"Wolverhampton City Council","http://opendatacommunities.org/id/metropolitan-district-council/wolverhampton","Governance","Amazon","18/10/2016","9.21","0.00","Equipment - Purchase","5942"
"Wolverhampton City Council","http://opendatacommunities.org/id/metropolitan-district-council/wolverhampton","Governance","Hampton By Hilton","18/10/2016","93.59","0.00","Accommodation costs","7011"
"Wolverhampton City Council","http://opendatacommunities.org/id/metropolitan-district-council/wolverhampton","Governance","Hampton By Hilton","18/10/2016","74.24","0.00","Accommodation costs","7011"
"Wolverhampton City Council","http://opendatacommunities.org/id/metropolitan-district-council/wolverhampton","Governance","www.riverford.co.uk","19/10/2016","24.29","0.00","Subsistence","5499"
"Wolverhampton City Council","http://opendatacommunities.org/id/metropolitan-district-council/wolverhampton","Governance","Uber","21/10/2016","8.55","0.00","Public transport","4121"
"Wolverhampton City Council","http://opendatacommunities.org/id/metropolitan-district-council/wolverhampton","Governance","Upper Crust","20/10/2016","2.55","0.00","Subsistence","5812"
"Wolverhampton City Council","http://opendatacommunities.org/id/metropolitan-district-council/wolverhampton","Governance","WH Smith","20/10/2016","2.48","0.00","Subsistence","5943"
"Wolverhampton City Council","http://opendatacommunities.org/id/metropolitan-district-council/wolverhampton","Governance","Hampton By Hilton","20/10/2016","14.40","0.00","Subsistence","7011"
"Wolverhampton City Council","http://opendatacommunities.org/id/metropolitan-district-council/wolverhampton","Governance","Hampton By Hilton","20/10/2016","2.46","0.00","Subsistence","7011"
"Wolverhampton City Council","http://opendatacommunities.org/id/metropolitan-district-council/wolverhampton","Governance","Uber","21/10/2016","5.45","0.00","Public transport","4121"
"Wolverhampton City Council","http://opendatacommunities.org/id/metropolitan-district-council/wolverhampton","Governance","House of Fraser","24/10/2016","59.50","0.00","Equipment - Purchase","5311"
"Wolverhampton City Council","http://opendatacommunities.org/id/metropolitan-district-council/wolverhampton","Governance","Greggs","25/10/2016","57.50","0.00","Subsistence","5812"
"Wolverhampton City Council","http://opendatacommunities.org/id/metropolitan-district-council/wolverhampton","Governance","www.riverford.co.uk","26/10/2016","24.29","0.00","Subsistence","5499"
"Wolverhampton City Council","http://opendatacommunities.org/id/metropolitan-district-council/wolverhampton","Governance","Wilko Retail","26/10/2016","18.00","0.00","Equipment - Purchase","5310"
"Wolverhampton City Council","http://opendatacommunities.org/id/metropolitan-district-council/wolverhampton","Governance","Clintons","26/10/2016","2.50","0.00","Equipment - Purchase","5947"
"Wolverhampton City Council","http://opendatacommunities.org/id/metropolitan-district-council/wolverhampton","Governance","Coffee Room","01/11/2016","2.58","0.00","Subsistence","5812"
"Wolverhampton City Council","http://opendatacommunities.org/id/metropolitan-district-council/wolverhampton","Governance","www.riverford.co.uk","02/11/2016","24.29","0.00","Subsistence","5499"
"Wolverhampton City Council","http://opendatacommunities.org/id/metropolitan-district-council/wolverhampton","Investments","London midland","02/11/2016","15.00","0.00","Public transport","4112"
"Wolverhampton City Council","http://opendatacommunities.org/id/metropolitan-district-council/wolverhampton","Investments","West Coast Trains","02/11/2016","6.10","0.00","Public transport","4112"
"Wolverhampton City Council","http://opendatacommunities.org/id/metropolitan-district-council/wolverhampton","Investments","Caffe Nero","02/11/2016","5.95","0.00","Subsistence","5812"
"Wolverhampton City Council","http://opendatacommunities.org/id/metropolitan-district-council/wolverhampton","Investments","Caffe Nero","02/11/2016","2.50","0.00","Subsistence","5812"
"Wolverhampton City Council","http://opendatacommunities.org/id/metropolitan-district-council/wolverhampton","Finance","Trainline","05/10/2016","38.50","0.00","Public transport","4112"
"Wolverhampton City Council","http://opendatacommunities.org/id/metropolitan-district-council/wolverhampton","Finance","Trainline","05/10/2016","9.90","0.00","Public transport","4112"
"Wolverhampton City Council","http://opendatacommunities.org/id/metropolitan-district-council/wolverhampton","Finance","Trainline","05/10/2016","48.05","0.00","Public transport","4112"
"Wolverhampton City Council","http://opendatacommunities.org/id/metropolitan-district-council/wolverhampton","Finance","Trainline","05/10/2016","179.00","0.00","Public transport","4112"
"Wolverhampton City Council","http://opendatacommunities.org/id/metropolitan-district-council/wolverhampton","Finance","Trainline","06/10/2016","24.20","0.00","Public transport","4112"
"Wolverhampton City Council","http://opendatacommunities.org/id/metropolitan-district-council/wolverhampton","Finance","Trainline","06/10/2016","179.00","0.00","Public transport","4112"
"Wolverhampton City Council","http://opendatacommunities.org/id/metropolitan-district-council/wolverhampton","Finance","Trainline","10/10/2016","173.70","0.00","Public transport","4112"
"Wolverhampton City Council","http://opendatacommunities.org/id/metropolitan-district-council/wolverhampton","Finance","Trainline","10/10/2016","170.00","0.00","Public transport","4112"
"Wolverhampton City Council","http://opendatacommunities.org/id/metropolitan-district-council/wolverhampton","Finance","Trainline","10/10/2016","163.20","0.00","Public transport","4112"
"Wolverhampton City Council","http://opendatacommunities.org/id/metropolitan-district-council/wolverhampton","Finance","West Coast Trains","11/10/2016","12.00","0.00","Public transport","4112"
"Wolverhampton City Council","http://opendatacommunities.org/id/metropolitan-district-council/wolverhampton","Finance","Trainline","12/10/2016","102.20","0.00","Public transport","4112"
"Wolverhampton City Council","http://opendatacommunities.org/id/metropolitan-district-council/wolverhampton","Finance","Trainline","12/10/2016","188.00","0.00","Public transport","4112"
"Wolverhampton City Council","http://opendatacommunities.org/id/metropolitan-district-council/wolverhampton","Finance","Travelodge","12/10/2016","157.35","0.00","Accommodation costs","7011"
"Wolverhampton City Council","http://opendatacommunities.org/id/metropolitan-district-council/wolverhampton","Finance","Travelodge","12/10/2016","157.35","0.00","Accommodation costs","7011"
"Wolverhampton City Council","http://opendatacommunities.org/id/metropolitan-district-council/wolverhampton","Finance","www.headsetco.co.uk","14/10/2016","83.94","0.00","Equipment - Purchase","5072"
"Wolverhampton City Council","http://opendatacommunities.org/id/metropolitan-district-council/wolverhampton","Finance","Trainline","14/10/2016","89.40","0.00","Public transport","4112"
"Wolverhampton City Council","http://opendatacommunities.org/id/metropolitan-district-council/wolverhampton","Finance","Trainline","14/10/2016","179.00","0.00","Public transport","4112"
"Wolverhampton City Council","http://opendatacommunities.org/id/metropolitan-district-council/wolverhampton","Finance","Trainline","25/10/2016","89.80","0.00","Public transport","4112"
"Wolverhampton City Council","http://opendatacommunities.org/id/metropolitan-district-council/wolverhampton","Finance","Trainline","25/10/2016","170.00","0.00","Public transport","4112"
"Wolverhampton City Council","http://opendatacommunities.org/id/metropolitan-district-council/wolverhampton","Finance","Trainline","25/10/2016","179.00","0.00","Public transport","4112"
"Wolverhampton City Council","http://opendatacommunities.org/id/metropolitan-district-council/wolverhampton","Finance","Trainline","28/10/2016","23.00","0.00","Public transport","4112"
"Wolverhampton City Council","http://opendatacommunities.org/id/metropolitan-district-council/wolverhampton","Executive","Costa Coffee","19/10/2016","3.46","0.00","Public transport","5813"
"Wolverhampton City Council","http://opendatacommunities.org/id/metropolitan-district-council/wolverhampton","Executive","Hampton by Hilton","20/10/2016","11.66","0.00","Subsistence","7011"
"Wolverhampton City Council","http://opendatacommunities.org/id/metropolitan-district-council/wolverhampton","Investments","Northern Rail","04/10/2016","33.80","0.00","Public transport","4112"
"Wolverhampton City Council","http://opendatacommunities.org/id/metropolitan-district-council/wolverhampton","Investments","West Coast Trains","07/10/2016","7.50","0.00","Parking fees","4112"
"Wolverhampton City Council","http://opendatacommunities.org/id/metropolitan-district-council/wolverhampton","Investments","LUL Ticket Machine","07/10/2016","30.00","0.00","Public transport","4112"
"Wolverhampton City Council","http://opendatacommunities.org/id/metropolitan-district-council/wolverhampton","Investments","Burger King","10/10/2016","4.82","0.00","Subsistence","5812"
"Wolverhampton City Council","http://opendatacommunities.org/id/metropolitan-district-council/wolverhampton","Investments","Gisborough Hall","10/10/2016","121.00","0.00","Accommodation costs","7011"
"Wolverhampton City Council","http://opendatacommunities.org/id/metropolitan-district-council/wolverhampton","Investments","West Coast Trains","10/10/2016","194.20","0.00","Public transport","4112"
"Wolverhampton City Council","http://opendatacommunities.org/id/metropolitan-district-council/wolverhampton","Investments","West Coast Trains","11/10/2016","15.00","0.00","Parking fees","4112"
"Wolverhampton City Council","http://opendatacommunities.org/id/metropolitan-district-council/wolverhampton","Investments","Burger King","11/10/2016","4.82","0.00","Subsistence","5812"
"Wolverhampton City Council","http://opendatacommunities.org/id/metropolitan-district-council/wolverhampton","Investments","West Coast Trains","02/11/2016","6.10","0.00","Public transport","4112"
"Wolverhampton City Council","http://opendatacommunities.org/id/metropolitan-district-council/wolverhampton","Investments","Trainline","18/10/2016","114.40","0.00","Public transport","4112"
"Wolverhampton City Council","http://opendatacommunities.org/id/metropolitan-district-council/wolverhampton","Investments","West Coast Trains","19/10/2016","9.00","0.00","Parking fees","4112"
"Wolverhampton City Council","http://opendatacommunities.org/id/metropolitan-district-council/wolverhampton","Investments","Burger King","19/10/2016","5.99","0.00","Subsistence","5812"
"Wolverhampton City Council","http://opendatacommunities.org/id/metropolitan-district-council/wolverhampton","Investments","Heathrow Rail Link","23/09/2016","22.00","0.00","Public transport","4112"
"Wolverhampton City Council","http://opendatacommunities.org/id/metropolitan-district-council/wolverhampton","Investments","Financial times","17/10/2016","175.50","0.00","Publications","5192"
"Wolverhampton City Council","http://opendatacommunities.org/id/metropolitan-district-council/wolverhampton","Pensions Operations","Trainline","25/10/2016","65.90","0.00","Public transport","4112"
"Wolverhampton City Council","http://opendatacommunities.org/id/metropolitan-district-council/wolverhampton","Pensions Operations","West Coast Trains","26/10/2016","7.50","0.00","Parking fees","4112"
"Wolverhampton City Council","http://opendatacommunities.org/id/metropolitan-district-council/wolverhampton","Finance","Q Park Birmingham","13/10/2016","8.33","0.00","Parking fees","7523"
"Wolverhampton City Council","http://opendatacommunities.org/id/metropolitan-district-council/wolverhampton","Finance","LUL Ticket machine","24/10/2016","55.00","0.00","Public transport","4112"
"Wolverhampton City Council","http://opendatacommunities.org/id/metropolitan-district-council/wolverhampton","Finance","Leon moorgte","24/10/2016","5.79","0.00","Subsistence","5812"
"Wolverhampton City Council","http://opendatacommunities.org/id/metropolitan-district-council/wolverhampton","Finance","Pizza express rest","24/10/2016","13.95","0.00","Subsistence","5812"
"Wolverhampton City Council","http://opendatacommunities.org/id/metropolitan-district-council/wolverhampton","Finance","Pret A Manger","24/10/2016","3.96","0.00","Subsistence","5812"
"Wolverhampton City Council","http://opendatacommunities.org/id/metropolitan-district-council/wolverhampton","Finance","Pret A Manger","24/10/2016","0.83","0.00","Subsistence","5812"
"Wolverhampton City Council","http://opendatacommunities.org/id/metropolitan-district-council/wolverhampton","Finance","Pret A Manger","24/10/2016","1.55","0.00","Subsistence","5812"
"Wolverhampton City Council","http://opendatacommunities.org/id/metropolitan-district-council/wolverhampton","Finance","Nandos","23/10/2016","11.17","0.00","Subsistence","5812"
"Wolverhampton City Council","http://opendatacommunities.org/id/metropolitan-district-council/wolverhampton","Finance","Pret A Manger","25/10/2016","3.50","0.00","Subsistence","5812"
"Wolverhampton City Council","http://opendatacommunities.org/id/metropolitan-district-council/wolverhampton","Finance","Pret A Manger","25/10/2016","6.75","0.00","Subsistence","5812"
"Wolverhampton City Council","http://opendatacommunities.org/id/metropolitan-district-council/wolverhampton","Finance","Pret A Manger","25/10/2016","1.79","0.00","Subsistence","5812"
"Wolverhampton City Council","http://opendatacommunities.org/id/metropolitan-district-council/wolverhampton","Finance","Nandos","25/10/2016","9.29","0.00","Subsistence","5812"
"Wolverhampton City Council","http://opendatacommunities.org/id/metropolitan-district-council/wolverhampton","Governance","Poundworld","04/10/2016","6.67","0.00","Equipment - Purchase","5310"
"Wolverhampton City Council","http://opendatacommunities.org/id/metropolitan-district-council/wolverhampton","Governance","Greggs","13/10/2016","27.80","0.00","Subsistence","5812"
"Wolverhampton City Council","http://opendatacommunities.org/id/metropolitan-district-council/wolverhampton","Governance","Iceland","13/10/2016","9.00","0.00","Subsistence","5411"
"Wolverhampton City Council","http://opendatacommunities.org/id/metropolitan-district-council/wolverhampton","Governance","Greggs","14/10/2016","13.90","0.00","Subsistence","5812"
"Wolverhampton City Council","http://opendatacommunities.org/id/metropolitan-district-council/wolverhampton","Governance","www.gear4music.com","14/10/2016","82.99","0.00","Equipment - Purchase","4812"
"Wolverhampton City Council","http://opendatacommunities.org/id/metropolitan-district-council/wolverhampton","Governance","www.groupon.co.uk","17/10/2016","160.00","0.00","Training","5310"
"Wolverhampton City Council","http://opendatacommunities.org/id/metropolitan-district-council/wolverhampton","Governance","www.groupon.co.uk","17/10/2016","110.00","0.00","Training","5310"
"Wolverhampton City Council","http://opendatacommunities.org/id/metropolitan-district-council/wolverhampton","Governance","www.groupon.co.uk","17/10/2016","110.00","0.00","Training","5310"
"Wolverhampton City Council","http://opendatacommunities.org/id/metropolitan-district-council/wolverhampton","Governance","www.groupon.co.uk","17/10/2016","44.00","0.00","Training","5310"
"Wolverhampton City Council","http://opendatacommunities.org/id/metropolitan-district-council/wolverhampton","Governance","Trainline","17/10/2016","10.45","0.00","Public transport","4112"
"Wolverhampton City Council","http://opendatacommunities.org/id/metropolitan-district-council/wolverhampton","Governance","Trainline","17/10/2016","14.33","0.00","Public transport","4112"
"Wolverhampton City Council","http://opendatacommunities.org/id/metropolitan-district-council/wolverhampton","Governance","Trainline","17/10/2016","10.45","0.00","Public transport","4112"
"Wolverhampton City Council","http://opendatacommunities.org/id/metropolitan-district-council/wolverhampton","Governance","Greggs","17/10/2016","13.90","0.00","Subsistence","5812"
"Wolverhampton City Council","http://opendatacommunities.org/id/metropolitan-district-council/wolverhampton","Governance","Iceland","17/10/2016","4.13","0.00","Subsistence","5411"
"Wolverhampton City Council","http://opendatacommunities.org/id/metropolitan-district-council/wolverhampton","Governance","Sainsburys","19/10/2016","74.55","0.00","Subsistence","5411"
"Wolverhampton City Council","http://opendatacommunities.org/id/metropolitan-district-council/wolverhampton","Governance","Greggs","20/10/2016","53.20","0.00","Subsistence","5812"
"Wolverhampton City Council","http://opendatacommunities.org/id/metropolitan-district-council/wolverhampton","Governance","Poundworld","20/10/2016","4.17","0.00","Subsistence","5310"
"Wolverhampton City Council","http://opendatacommunities.org/id/metropolitan-district-council/wolverhampton","Governance","Wilko Retail","24/10/2016","3.50","0.00","Equipment - Purchase","5310"
"Wolverhampton City Council","http://opendatacommunities.org/id/metropolitan-district-council/wolverhampton","Governance","Wilko Retail","24/10/2016","38.00","0.00","Equipment - Purchase","5310"
"Wolverhampton City Council","http://opendatacommunities.org/id/metropolitan-district-council/wolverhampton","Governance","Timpson LTD","25/10/2016","23.95","0.00","Equipment - Purchase","7251"
"Wolverhampton City Council","http://opendatacommunities.org/id/metropolitan-district-council/wolverhampton","Governance","Ikea","25/10/2016","7.08","0.00","Equipment - Purchase","5712"
"Wolverhampton City Council","http://opendatacommunities.org/id/metropolitan-district-council/wolverhampton","Governance","Marks & Spencer","25/10/2016","34.00","0.00","Subsistence","5311"
"Wolverhampton City Council","http://opendatacommunities.org/id/metropolitan-district-council/wolverhampton","Governance","Greggs","26/10/2016","39.30","0.00","Subsistence","5812"
"Wolverhampton City Council","http://opendatacommunities.org/id/metropolitan-district-council/wolverhampton","Governance","Iceland","26/10/2016","8.68","0.00","Subsistence","5411"
"Wolverhampton City Council","http://opendatacommunities.org/id/metropolitan-district-council/wolverhampton","Governance","Greggs","27/10/2016","76.20","0.00","Subsistence","5812"
"Wolverhampton City Council","http://opendatacommunities.org/id/metropolitan-district-council/wolverhampton","Governance","Iceland","27/10/2016","4.85","0.00","Subsistence","5411"
"Wolverhampton City Council","http://opendatacommunities.org/id/metropolitan-district-council/wolverhampton","Governance","Co-operative Food","28/10/2016","5.88","0.00","Subsistence","5411"
"Wolverhampton City Council","http://opendatacommunities.org/id/metropolitan-district-council/wolverhampton","Governance","Greggs","28/10/2016","36.90","0.00","Subsistence","5812"
"Wolverhampton City Council","http://opendatacommunities.org/id/metropolitan-district-council/wolverhampton","Governance","Iceland","01/11/2016","12.00","0.00","Subsistence","5411"
"Wolverhampton City Council","http://opendatacommunities.org/id/metropolitan-district-council/wolverhampton","Governance","Greggs","01/11/2016","27.00","0.00","Subsistence","5812"
"Wolverhampton City Council","http://opendatacommunities.org/id/metropolitan-district-council/wolverhampton","Governance","Poundworld","02/11/2016","8.33","0.00","Subsistence","5310"
"Wolverhampton City Council","http://opendatacommunities.org/id/metropolitan-district-council/wolverhampton","Finance","Virgin Trains","14/11/2016","179.00","0.00","Public Transport","4112"
"Wolverhampton City Council","http://opendatacommunities.org/id/metropolitan-district-council/wolverhampton","Finance","Virgin Trains","14/11/2016","179.00","0.00","Public Transport","4112"
"Wolverhampton City Council","http://opendatacommunities.org/id/metropolitan-district-council/wolverhampton","Finance","Virgin Trains","14/11/2016","26.40","0.00","Public Transport","4112"
"Wolverhampton City Council","http://opendatacommunities.org/id/metropolitan-district-council/wolverhampton","Finance","Virgin Trains","15/11/2016","277.80","0.00","Public Transport","4112"
"Wolverhampton City Council","http://opendatacommunities.org/id/metropolitan-district-council/wolverhampton","Finance","Virgin Trains","15/11/2016","26.80","0.00","Public Transport","4112"
"Wolverhampton City Council","http://opendatacommunities.org/id/metropolitan-district-council/wolverhampton","Finance","Virgin Trains","16/11/2016","71.60","0.00","Public Transport","4112"
"Wolverhampton City Council","http://opendatacommunities.org/id/metropolitan-district-council/wolverhampton","Finance","Virgin Trains","17/11/2016","16.50","0.00","Public Transport","4112"
"Wolverhampton City Council","http://opendatacommunities.org/id/metropolitan-district-council/wolverhampton","Finance","Virgin Trains","18/11/2016","1,556.00","0.00","Public Transport","4112"
"Wolverhampton City Council","http://opendatacommunities.org/id/metropolitan-district-council/wolverhampton","Finance","Virgin Trains","21/11/2016","118.00","0.00","Public Transport","4112"
"Wolverhampton City Council","http://opendatacommunities.org/id/metropolitan-district-council/wolverhampton","Finance","Virgin Trains","22/11/2016","90.00","0.00","Public Transport","4112"
"Wolverhampton City Council","http://opendatacommunities.org/id/metropolitan-district-council/wolverhampton","Finance","Virgin Trains","22/11/2016","48.05","0.00","Public Transport","4112"
"Wolverhampton City Council","http://opendatacommunities.org/id/metropolitan-district-council/wolverhampton","Finance","Virgin Trains","23/11/2016","86.00","0.00","Public Transport","4112"
"Wolverhampton City Council","http://opendatacommunities.org/id/metropolitan-district-council/wolverhampton","Finance","Travelodge","23/11/2016","88.95","0.00","Accommodation costs","7011"
"Wolverhampton City Council","http://opendatacommunities.org/id/metropolitan-district-council/wolverhampton","Finance","Virgin Trains","24/11/2016","400.00","0.00","Public Transport","4112"
"Wolverhampton City Council","http://opendatacommunities.org/id/metropolitan-district-council/wolverhampton","Finance","Virgin Trains","25/11/2016","109.60","0.00","Public Transport","4112"
"Wolverhampton City Council","http://opendatacommunities.org/id/metropolitan-district-council/wolverhampton","Finance","Virgin Trains","25/11/2016","151.50","0.00","Public Transport","4112"
"Wolverhampton City Council","http://opendatacommunities.org/id/metropolitan-district-council/wolverhampton","Finance","Virgintrains.co.uk","30/11/2016","(34.50)","0.00","Public Transport","4112"
"Wolverhampton City Council","http://opendatacommunities.org/id/metropolitan-district-council/wolverhampton","Investments","Pret A Manger","08/11/2016","9.41","0.00","Subsistence","5812"
"Wolverhampton City Council","http://opendatacommunities.org/id/metropolitan-district-council/wolverhampton","Investments","West Coast Trains","08/11/2016","7.50","0.00","Parking fees","4112"
"Wolverhampton City Council","http://opendatacommunities.org/id/metropolitan-district-council/wolverhampton","Investments","West Coast Trains","10/11/2016","7.50","0.00","Parking fees","4112"
"Wolverhampton City Council","http://opendatacommunities.org/id/metropolitan-district-council/wolverhampton","Investments","West Coast Trains","16/11/2016","7.50","0.00","Parking fees","4112"
"Wolverhampton City Council","http://opendatacommunities.org/id/metropolitan-district-council/wolverhampton","Investments","West Coast Trains","24/11/2016","179.00","0.00","Public Transport","4112"
"Wolverhampton City Council","http://opendatacommunities.org/id/metropolitan-district-council/wolverhampton","Investments","West Coast Trains","24/11/2016","7.50","0.00","Parking fees","4112"
"Wolverhampton City Council","http://opendatacommunities.org/id/metropolitan-district-council/wolverhampton","Investments","Blueberry Food Company","29/11/2016","17.40","0.00","Subsistence","5812"
"Wolverhampton City Council","http://opendatacommunities.org/id/metropolitan-district-council/wolverhampton","Investments","West Coast Trains","29/11/2016","7.50","0.00","Parking fees","4112"
"Wolverhampton City Council","http://opendatacommunities.org/id/metropolitan-district-council/wolverhampton","Investments","West Coast Trains","29/11/2016","7.50","0.00","Parking fees","4112"
"Wolverhampton City Council","http://opendatacommunities.org/id/metropolitan-district-council/wolverhampton","Investments","LUL TICKET MACHINE","11/11/2016","50.00","0.00","Public Transport","4112"
"Wolverhampton City Council","http://opendatacommunities.org/id/metropolitan-district-council/wolverhampton","Investments","Virgin Trains","13/11/2016","120.65","0.00","Public Transport","4112"
"Wolverhampton City Council","http://opendatacommunities.org/id/metropolitan-district-council/wolverhampton","Investments","Virgin Trains","21/11/2016","64.40","0.00","Public Transport","4112"
"Wolverhampton City Council","http://opendatacommunities.org/id/metropolitan-district-council/wolverhampton","Investments","LUL TICKET MACHINE","29/11/2016","30.00","0.00","Public Transport","4112"
"Wolverhampton City Council","http://opendatacommunities.org/id/metropolitan-district-council/wolverhampton","Investments","West Coast Trains","29/11/2016","7.50","0.00","Parking fees","4112"
"Wolverhampton City Council","http://opendatacommunities.org/id/metropolitan-district-council/wolverhampton","Investments","Rail Gourmet UK","29/11/2016","7.45","0.00","Subsistence","5812"
"Wolverhampton City Council","http://opendatacommunities.org/id/metropolitan-district-council/wolverhampton","Finance","Virgin Trains","09/11/2016","109.60","0.00","Public Transport","4112"
"Wolverhampton City Council","http://opendatacommunities.org/id/metropolitan-district-council/wolverhampton","Finance","Virgin Trains","03/11/2016","396.50","0.00","Public Transport","4112"
"Wolverhampton City Council","http://opendatacommunities.org/id/metropolitan-district-council/wolverhampton","Finance","Amazon","05/11/2016","13.94","0.00","Equipment - Purchase","5942"
"Wolverhampton City Council","http://opendatacommunities.org/id/metropolitan-district-council/wolverhampton","Finance","Novotel","05/11/2016","88.95","0.00","Accommodation costs","7011"
"Wolverhampton City Council","http://opendatacommunities.org/id/metropolitan-district-council/wolverhampton","Finance","Amazon","07/11/2016","9.94","0.00","Equipment - Purchase","5942"
"Wolverhampton City Council","http://opendatacommunities.org/id/metropolitan-district-council/wolverhampton","Finance","Virgin Trains","07/11/2016","105.40","0.00","Public Transport","4112"
"Wolverhampton City Council","http://opendatacommunities.org/id/metropolitan-district-council/wolverhampton","Finance","Virgin Trains","07/11/2016","233.00","0.00","Public Transport","4112"
"Wolverhampton City Council","http://opendatacommunities.org/id/metropolitan-district-council/wolverhampton","Finance","Virgin Trains","07/11/2016","9.00","0.00","Public Transport","4112"
"Wolverhampton City Council","http://opendatacommunities.org/id/metropolitan-district-council/wolverhampton","Finance","Amazon","09/11/2016","(13.94)","0.00","Equipment - Purchase","5942"
"Wolverhampton City Council","http://opendatacommunities.org/id/metropolitan-district-council/wolverhampton","Finance","Amazon","09/11/2016","13.94","0.00","Equipment - Purchase","5942"
"Wolverhampton City Council","http://opendatacommunities.org/id/metropolitan-district-council/wolverhampton","Finance","West Coast Trains","09/11/2016","10.00","0.00","Parking fees","4112"
"Wolverhampton City Council","http://opendatacommunities.org/id/metropolitan-district-council/wolverhampton","Finance","Virgin Trains","10/11/2016","97.40","0.00","Public Transport","4112"
"Wolverhampton City Council","http://opendatacommunities.org/id/metropolitan-district-council/wolverhampton","Finance","Virgintrains.co.uk","09/11/2016","(16.70)","0.00","Public Transport","4112"
"Wolverhampton City Council","http://opendatacommunities.org/id/metropolitan-district-council/wolverhampton","Finance","LUL TICKET MACHINE","21/11/2016","20.00","0.00","Public Transport","4112"
"Wolverhampton City Council","http://opendatacommunities.org/id/metropolitan-district-council/wolverhampton","Finance","London Midland","21/11/2016","5.40","0.00","Parking fees","4112"
"Wolverhampton City Council","http://opendatacommunities.org/id/metropolitan-district-council/wolverhampton","Finance","Virgintrains.co.uk","22/11/2016","(9.00)","0.00","Public Transport","4112"
"Wolverhampton City Council","http://opendatacommunities.org/id/metropolitan-district-council/wolverhampton","Executive","Upper Crust","10/11/2016","2.38","0.00","Subsistence","5812"
"Wolverhampton City Council","http://opendatacommunities.org/id/metropolitan-district-council/wolverhampton","Executive","Upper Crust","10/11/2016","3.40","0.00","Subsistence","5812"
"Wolverhampton City Council","http://opendatacommunities.org/id/metropolitan-district-council/wolverhampton","Executive","COPTHORNE TARA","14/11/2016","97.49","0.00","Accommodation costs","7011"
"Wolverhampton City Council","http://opendatacommunities.org/id/metropolitan-district-council/wolverhampton","Executive","Millennium","15/11/2016","9.17","0.00","Subsistence","5812"
"Wolverhampton City Council","http://opendatacommunities.org/id/metropolitan-district-council/wolverhampton","Executive","Millennium","15/11/2016","1.10","0.00","Subsistence","5812"
"Wolverhampton City Council","http://opendatacommunities.org/id/metropolitan-district-council/wolverhampton","Executive","McDonalds","16/11/2016","2.91","0.00","Subsistence","5812"
"Wolverhampton City Council","http://opendatacommunities.org/id/metropolitan-district-council/wolverhampton","Investments","West Coast Trains","16/11/2016","7.50","0.00","Parking fees","4112"
"Wolverhampton City Council","http://opendatacommunities.org/id/metropolitan-district-council/wolverhampton","Investments","West Coast Trains","29/11/2016","7.50","0.00","Parking fees","4112"
"Wolverhampton City Council","http://opendatacommunities.org/id/metropolitan-district-council/wolverhampton","Pensions Operations","Birmingham City Council","10/11/2016","15.00","0.00","Publications","9399"
"Wolverhampton City Council","http://opendatacommunities.org/id/metropolitan-district-council/wolverhampton","Pensions Operations","Sandwell MBC","10/11/2016","10.00","0.00","Publications","9399"
"Wolverhampton City Council","http://opendatacommunities.org/id/metropolitan-district-council/wolverhampton","Pensions Operations","Sandwell MBC","10/11/2016","30.00","0.00","Publications","9399"
"Wolverhampton City Council","http://opendatacommunities.org/id/metropolitan-district-council/wolverhampton","Pensions Operations","Sandwell MBC","14/11/2016","(3.00)","0.00","Publications","9399"
"Wolverhampton City Council","http://opendatacommunities.org/id/metropolitan-district-council/wolverhampton","Pensions Operations","Sandwell MBC","15/11/2016","40.00","0.00","Publications","9399"
"Wolverhampton City Council","http://opendatacommunities.org/id/metropolitan-district-council/wolverhampton","Governance","www.riverford.co.uk","09/11/2016","24.29","0.00","Subsistence","5499"
"Wolverhampton City Council","http://opendatacommunities.org/id/metropolitan-district-council/wolverhampton","Governance","Iceland","14/11/2016","5.94","0.00","Subsistence","5411"
"Wolverhampton City Council","http://opendatacommunities.org/id/metropolitan-district-council/wolverhampton","Governance","www.riverford.co.uk","16/11/2016","25.81","0.00","Subsistence","5499"
"Wolverhampton City Council","http://opendatacommunities.org/id/metropolitan-district-council/wolverhampton","Governance","www.riverford.co.uk","23/11/2016","25.81","0.00","Subsistence","5499"
"Wolverhampton City Council","http://opendatacommunities.org/id/metropolitan-district-council/wolverhampton","Governance","Currys online","28/11/2016","296.00","0.00","Equipment - Purchase","5065"
"Wolverhampton City Council","http://opendatacommunities.org/id/metropolitan-district-council/wolverhampton","Governance","www.riverford.co.uk","30/11/2016","25.81","0.00","Subsistence","5499"
"Wolverhampton City Council","http://opendatacommunities.org/id/metropolitan-district-council/wolverhampton","Governance","Kensington Close Hotel","04/11/2016","267.50","0.00","Accommodation costs","7011"
"Wolverhampton City Council","http://opendatacommunities.org/id/metropolitan-district-council/wolverhampton","Governance","Greggs","04/11/2016","38.50","0.00","Subsistence","5812"
"Wolverhampton City Council","http://opendatacommunities.org/id/metropolitan-district-council/wolverhampton","Governance","Premier Inn","04/11/2016","126.98","0.00","Accommodation costs","7011"
"Wolverhampton City Council","http://opendatacommunities.org/id/metropolitan-district-council/wolverhampton","Governance","www.groupon.co.uk","07/11/2016","110.00","0.00","Training","5310"
"Wolverhampton City Council","http://opendatacommunities.org/id/metropolitan-district-council/wolverhampton","Governance","Greggs","07/11/2016","38.50","0.00","Subsistence","5812"
"Wolverhampton City Council","http://opendatacommunities.org/id/metropolitan-district-council/wolverhampton","Governance","Iceland","07/11/2016","8.44","0.00","Subsistence","5411"
"Wolverhampton City Council","http://opendatacommunities.org/id/metropolitan-district-council/wolverhampton","Governance","Iceland","07/11/2016","2.00","0.00","Subsistence","5411"
"Wolverhampton City Council","http://opendatacommunities.org/id/metropolitan-district-council/wolverhampton","Governance","www.groupon.co.uk","08/11/2016","22.00","0.00","Training","5310"
"Wolverhampton City Council","http://opendatacommunities.org/id/metropolitan-district-council/wolverhampton","Governance","www.groupon.co.uk","08/11/2016","22.00","0.00","Training","5310"
"Wolverhampton City Council","http://opendatacommunities.org/id/metropolitan-district-council/wolverhampton","Governance","Greggs","08/11/2016","13.90","0.00","Subsistence","5812"
"Wolverhampton City Council","http://opendatacommunities.org/id/metropolitan-district-council/wolverhampton","Governance","Greggs","09/11/2016","13.90","0.00","Subsistence","5812"
"Wolverhampton City Council","http://opendatacommunities.org/id/metropolitan-district-council/wolverhampton","Governance","Iceland","09/11/2016","5.50","0.00","Subsistence","5411"
"Wolverhampton City Council","http://opendatacommunities.org/id/metropolitan-district-council/wolverhampton","Governance","Greggs","10/11/2016","64.80","0.00","Subsistence","5812"
"Wolverhampton City Council","http://opendatacommunities.org/id/metropolitan-district-council/wolverhampton","Governance","Marks and Spencer","10/11/2016","7.00","0.00","Subsistence","5311"
"Wolverhampton City Council","http://opendatacommunities.org/id/metropolitan-district-council/wolverhampton","Governance","Iceland","10/11/2016","2.24","0.00","Subsistence","5411"
"Wolverhampton City Council","http://opendatacommunities.org/id/metropolitan-district-council/wolverhampton","Governance","greggs","14/11/2016","27.00","0.00","Subsistence","5812"
"Wolverhampton City Council","http://opendatacommunities.org/id/metropolitan-district-council/wolverhampton","Governance","Co-operative Food","21/11/2016","3.50","0.00","Subsistence","5411"
"Wolverhampton City Council","http://opendatacommunities.org/id/metropolitan-district-council/wolverhampton","Governance","greggs","21/11/2016","25.45","0.00","Subsistence","5812"
"Wolverhampton City Council","http://opendatacommunities.org/id/metropolitan-district-council/wolverhampton","Governance","Iceland","21/11/2016","5.94","0.00","Subsistence","5411"
"Wolverhampton City Council","http://opendatacommunities.org/id/metropolitan-district-council/wolverhampton","Governance","greggs","22/11/2016","53.65","0.00","Subsistence","5812"
"Wolverhampton City Council","http://opendatacommunities.org/id/metropolitan-district-council/wolverhampton","Governance","Iceland","22/11/2016","8.95","0.00","Subsistence","5411"
"Wolverhampton City Council","http://opendatacommunities.org/id/metropolitan-district-council/wolverhampton","Governance","www.ckb.uk.com","24/11/2016","24.50","0.00","Equipment - Purchase","5111"
"Wolverhampton City Council","http://opendatacommunities.org/id/metropolitan-district-council/wolverhampton","Governance","Premier Inn","23/11/2016","(126.98)","0.00","Accommodation costs","7011"
"Wolverhampton City Council","http://opendatacommunities.org/id/metropolitan-district-council/wolverhampton","Governance","www.viking-direct.co.uk","25/11/2016","15.00","0.00","Equipment - Purchase","5111"
"Wolverhampton City Council","http://opendatacommunities.org/id/metropolitan-district-council/wolverhampton","Governance","Poundland","28/11/2016","1.00","0.00","Equipment - Purchase","5310"
"Wolverhampton City Council","http://opendatacommunities.org/id/metropolitan-district-council/wolverhampton","Governance","greggs","28/11/2016","25.50","0.00","Subsistence","5812"
"Wolverhampton City Council","http://opendatacommunities.org/id/metropolitan-district-council/wolverhampton","Governance","Iceland","28/11/2016","7.69","0.00","Subsistence","5411"
"Wolverhampton City Council","http://opendatacommunities.org/id/metropolitan-district-council/wolverhampton","Governance","greggs","30/11/2016","12.75","0.00","Subsistence","5812"
"Wolverhampton City Council","http://opendatacommunities.org/id/metropolitan-district-council/wolverhampton","Governance","greggs","30/11/2016","2.55","0.00","Subsistence","5812"
"Wolverhampton City Council","http://opendatacommunities.org/id/metropolitan-district-council/wolverhampton","Governance","Iceland","30/11/2016","6.49","0.00","Subsistence","5411"
"Wolverhampton City Council","http://opendatacommunities.org/id/metropolitan-district-council/wolverhampton","Governance","Iceland","01/12/2016","21.45","0.00","Subsistence","5411"
"Wolverhampton City Council","http://opendatacommunities.org/id/metropolitan-district-council/wolverhampton","Governance","Iceland","01/12/2016","4.07","0.00","Subsistence","5411"
"Wolverhampton City Council","http://opendatacommunities.org/id/metropolitan-district-council/wolverhampton","Investments","ANJ NEWS","28/11/2016","30.50","0.00","Public Transport","5994"
"Wolverhampton City Council","http://opendatacommunities.org/id/metropolitan-district-council/wolverhampton","Investments","PRET A MANGER","28/11/2016","4.00","0.00","Subsistence","5812"
"Wolverhampton City Council","http://opendatacommunities.org/id/metropolitan-district-council/wolverhampton","Investments","TESCO","28/11/2016","7.93","0.00","Subsistence","5411"
"Wolverhampton City Council","http://opendatacommunities.org/id/metropolitan-district-council/wolverhampton","Investments","HOXTON GRILL","28/11/2016","19.58","0.00","Subsistence","5812"
"Wolverhampton City Council","http://opendatacommunities.org/id/metropolitan-district-council/wolverhampton","Investments","HOXTON GRILL","28/11/2016","2.94","0.00","Subsistence","5812"
"Wolverhampton City Council","http://opendatacommunities.org/id/metropolitan-district-council/wolverhampton","Investments","BOOTS","29/11/2016","3.62","0.00","Subsistence","5912"
"Wolverhampton City Council","http://opendatacommunities.org/id/metropolitan-district-council/wolverhampton","Governance","greggs","03/11/2016","5.00","0.00","Subsistence","5812"
"Wolverhampton City Council","http://opendatacommunities.org/id/metropolitan-district-council/wolverhampton","Governance","iceland","03/11/2016","4.89","0.00","Subsistence","5411"
"Wolverhampton City Council","http://opendatacommunities.org/id/metropolitan-district-council/wolverhampton","Governance","premier inn","16/11/2016","116.98","0.00","Accommodation costs","7011"
"Wolverhampton City Council","http://opendatacommunities.org/id/metropolitan-district-council/wolverhampton","Governance","Wilko Retail","21/11/2016","(38.00)","0.00","Equipment - Purchase","5310"
"Wolverhampton City Council","http://opendatacommunities.org/id/metropolitan-district-council/wolverhampton","Governance","premier inn","23/11/2015","(116.98)","0.00","Accommodation costs","7011"
"Wolverhampton City Council","http://opendatacommunities.org/id/metropolitan-district-council/wolverhampton","Governance","Paypal","25/11/2016","22.02","0.00","Equipment - Purchase","8999"
"Wolverhampton City Council","http://opendatacommunities.org/id/metropolitan-district-council/wolverhampton","Governance","Travelodge","25/11/2016","47.46","0.00","Accommodation costs","7011"
"Wolverhampton City Council","http://opendatacommunities.org/id/metropolitan-district-council/wolverhampton","Investments","Virgin Trains","08/12/2016","64.40","0.00","Public Transport","4112"
"Wolverhampton City Council","http://opendatacommunities.org/id/metropolitan-district-council/wolverhampton","Finance","www.cfauk.org","12/12/2016","495.00","0.00","Training","8299"
"Wolverhampton City Council","http://opendatacommunities.org/id/metropolitan-district-council/wolverhampton","Finance","www.cfauk.org","12/12/2016","177.00","0.00","Training","8299"
"Wolverhampton City Council","http://opendatacommunities.org/id/metropolitan-district-council/wolverhampton","Executive","XC Trains LTD","08/12/2016","17.50","0.00","Subsistence","4112"
"Wolverhampton City Council","http://opendatacommunities.org/id/metropolitan-district-council/wolverhampton","Investments","LUL TICKET MACHINE","13/12/2016","25.00","0.00","Public Transport","4112"
"Wolverhampton City Council","http://opendatacommunities.org/id/metropolitan-district-council/wolverhampton","Investments","West Coast Trains","13/12/2016","179.00","0.00","Public Transport","4112"
"Wolverhampton City Council","http://opendatacommunities.org/id/metropolitan-district-council/wolverhampton","Investments","West Coast Trains","13/12/2016","7.50","0.00","Parking fees","4112"
"Wolverhampton City Council","http://opendatacommunities.org/id/metropolitan-district-council/wolverhampton","Investments","DDF Barrierline","13/12/2016","5.57","0.00","Subsistence","5812"
"Wolverhampton City Council","http://opendatacommunities.org/id/metropolitan-district-council/wolverhampton","Investments","West Coast Trains","16/12/2016","7.70","0.00","Public Transport","4112"
"Wolverhampton City Council","http://opendatacommunities.org/id/metropolitan-district-council/wolverhampton","Investments","West Coast Trains","09/12/2016","5.60","0.00","Public Transport","4112"
